Workbook

Sheet командный зачёт
B2: Чемпионат Республики Беларусь 2018г
C3: Спортивный лов рыбы донной удочкой методом квивертип (фидер)
C4: Командный зачёт
A5: N п/п | B5: Название команды | C5: Фамилия, Имя рыболова-спортсмена | E5: 1 этап | I5: 2 этап | M5: 3 этап | Q5: Вес за 3 этапа | R5: Сумма мест за 3 этапа | S5: Командный вес за 3 этапа | T5: Сумма мест команды | U5: Итоговое командное место
E7: 1 тур | G7: 2 тур | I7: 1 тур | K7: 2 тур | M7: 1 тур | O7: 2 тур
E8: Вес | F8: Место | G8: Вес | H8: Место | I8: Вес | J8: Место | K8: Вес | L8: Место | M8: Вес | N8: Место | O8: Вес | P8: Место
A9: 1 | B9: FLAGMAN BELARUS | C9: Бурак Александр | E9: 4600 | F9: 5 | G9: 3260 | H9: 7 | I9: 380 | J9: 10 | K9: 3810 | L9: 1 | M9: 1580 | N9: 9 | O9: 3050 | P9: 9 | Q9: =SUM(E9+G9+I9+K9+M9+O9) -> 16680 | R9: =SUM(F9+H9+J9+L9+N9+P9) -> 41 | S9: =SUM(Q9:Q13) -> 88210 | T9: =SUM(R9:R13) -> 122 | U9: 2
C10: Костечко Михаил | E10: 4560 | F10: 2 | G10: 4400 | H10: 3 | I10: 2630 | J10: 2 | K10: 5620 | L10: 2 | M10: 2620 | N10: 7 | O10: 7130 | P10: 3 | Q10: =SUM(E10+G10+I10+K10+M10+O10) -> 26960 | R10: =SUM(F10+H10+J10+L10+N10+P10) -> 19
C11: Федюнин Александр | E11: 9380 | F11: 2 | G11: 4920 | H11: 10 | I11: 1660 | J11: 3 | K11: 2390 | L11: 3 | M11: 3810 | N11: 6 | O11: 2790 | P11: 9 | Q11: 24950 | R11: 33
C12: Якубович Алексей | E12: 3600 | F12: 8 | G12: 3720 | H12: 4 | I12: 1490 | J12: 2 | K12: 3060 | L12: 2 | M12: 2550 | N12: 3 | O12: 5200 | P12: 10 | Q12: 19620 | R12: 29
Q13: 0 | R13: 0
A14: 2 | B14: DJO-FISH | C14: Рунец Дмитрий | E14: 7340 | F14: 1 | G14: 2910 | H14: 6.5 | I14: 1190 | J14: 4 | K14: 1400 | L14: 7 | M14: 1980 | N14: 8 | O14: 6680 | P14: 2 | Q14: 21500 | R14: 28.5 | S14: =SUM(Q14:Q18) -> 85620 | T14: =SUM(R14:R18) -> 137 | U14: 5
C15: Бензиков Игорь | E15: 2990 | F15: 7 | G15: 3550 | H15: 6 | I15: 1010 | J15: 7.5 | K15: 1150 | L15: 8 | M15: 940 | N15: 9 | O15: 6790 | P15: 3 | Q15: 16430 | R15: 40.5
C16: Драенков Сергей | E16: 4510 | F16: 6 | G16: 4000 | H16: 5 | I16: 360 | J16: 9 | K16: 1370 | L16: 6 | M16: 2710 | N16: 8 | O16: 5730 | P16: 9 | Q16: 18680 | R16: 43
C17: Кучеренко Денис | E17: 5110 | F17: 5 | G17: 5550 | H17: 6 | I17: 3450 | J17: 1 | K17: 2770 | L17: 5 | M17: 6080 | N17: 2 | O17: 6050 | P17: 6 | Q17: 29010 | R17: 25
Q18: 0 | R18: 0
A19: 3 | B19: RS-Gomel | C19: Аверкин Андрей | E19: 1950 | F19: 11 | G19: 1980 | H19: 10 | I19: 590 | J19: 7 | K19: 1930 | L19: 3.5 | M19: 3180 | N19: 1 | O19: 2370 | P19: 11 | Q19: 12000 | R19: 43.5 | S19: =SUM(Q19:Q23) -> 96260 | T19: =SUM(R19:R23) -> 138.5 | U19: 6
C20: Маслов Сергей | E20: 5360 | F20: 4 | G20: 6840 | H20: 1 | I20: 1500 | J20: 8 | K20: 5450 | L20: 1 | M20: 1790 | N20: 9 | O20: 4280 | P20: 6 | Q20: 25220 | R20: 29
C21: Матюшков Игорь | E21: 5010 | F21: 4 | G21: 2810 | H21: 9 | I21: 1120 | J21: 5 | K21: 3510 | L21: 1 | M21: 13600 | N21: 1 | O21: 17550 | P21: 2 | Q21: 43600 | R21: 22
C22: Таптухин Вячеслав | E22: 1680 | F22: 11 | G22: 3740 | H22: 5 | I22: 2300 | J22: 2 | K22: 1020 | L22: 10 | M22: 1390 | N22: 10 | O22: 5310 | P22: 6 | Q22: 15440 | R22: 44
Q23: 0 | R23: 0
A24: 4 | B24: IVVA-Гомель | C24: Гордиенко Андрей | E24: 5700 | F24: 3 | G24: 6310 | H24: 3 | I24: 2260 | J24: 3 | K24: 970 | L24: 10 | M24: 4160 | N24: 3 | O24: 3980 | P24: 11 | Q24: 23380 | R24: 33 | S24: =SUM(Q24:Q28) -> 97850 | T24: =SUM(R24:R28) -> 98 | U24: 1
C25: Полещук Сергей | E25: 6650 | F25: 1 | G25: 5380 | H25: 1 | I25: 920 | J25: 7 | K25: 3130 | L25: 2 | M25: 2770 | N25: 7 | O25: 9640 | P25: 1 | Q25: 28490 | R25: 19
C26: Цалков Артем | E26: 6120 | F26: 2 | G26: 5410 | H26: 1 | I26: 2320 | J26: 3 | K26: 1740 | L26: 6 | M26: 2590 | N26: 2 | O26: 8880 | P26: 1 | Q26: 27060 | R26: 15
C27: Седач Владислав | E27: 3060 | F27: 6 | G27: 4200 | H27: 3 | I27: 1210 | J27: 4 | K27: 1170 | L27: 7 | M27: 5840 | N27: 3 | O27: 3440 | P27: 8 | Q27: 18920 | R27: 31
Q28: 0 | R28: 0
A29: 5 | B29: C+&RS feeder team Brest | C29: Буната Александр | E29: 10040 | F29: 1 | G29: 4700 | H29: 2 | I29: 1900 | J29: 5 | K29: 1250 | L29: 9 | M29: 1410 | N29: 5 | O29: 3460 | P29: 8 | Q29: 22760 | R29: 30 | S29: =SUM(Q29:Q33) -> 95420 | T29: =SUM(R29:R33) -> 123.5 | U29: 3
C30: Лапин Игор | E30: 5400 | F30: 3 | G30: 6730 | H30: 2 | I30: 2110 | J30: 1 | K30: 1080 | L30: 8.5 | M30: 7520 | N30: 1 | O30: 3450 | P30: 8 | Q30: 26290 | R30: 23.5
C31: Гречаник Николай | E31: 3410 | F31: 8 | G31: 5860 | H31: 2 | I31: 2030 | J31: 4 | K31: 1070 | L31: 7 | M31: 1250 | N31: 10 | O31: 3840 | P31: 7 | Q31: 17460 | R31: 38
C32: Товкач Сергей | E32: 6080 | F32: 1 | G32: 4850 | H32: 2 | I32: 1050 | J32: 6 | K32: 910 | L32: 9 | M32: 2130 | N32: 10 | O32: 13890 | P32: 4 | Q32: 28910 | R32: 32
Q33: 0 | R33: 0
A34: 6 | B34: Terrikon Feeder | C34: Дробышевский Павел | E34: 5650 | F34: 3 | G34: 6140 | H34: 4 | I34: 1940 | J34: 1 | K34: 630 | L34: 11 | M34: 3320 | N34: 5 | O34: 2950 | P34: 9 | Q34: 20630 | R34: 33 | S34: =SUM(Q34:Q38) -> 67090 | T34: =SUM(R34:R38) -> 183 | U34: 9
C35: Комса Сергей | E35: 2950 | F35: 8 | G35: 4010 | H35: 4 | I35: 1430 | J35: 6 | K35: 1260 | L35: 8 | Q35: 9650 | R35: 26
C36: Шамшура Юрий | E36: 6120 | F36: 2 | G36: 2660 | H36: 8 | I36: 1580 | J36: 7 | K36: 370 | L36: 12 | M36: 2050 | N36: 11 | O36: 7580 | P36: 8 | Q36: 20360 | R36: 48
C37: Шнарский Андрей | E37: 2870 | F37: 10 | G37: 1520 | H37: 11 | I37: 220 | J37: 11 | K37: 870 | L37: 10 | M37: 810 | N37: 11 | O37: 4080 | P37: 7 | Q37: 10370 | R37: 60
C38: Молочко | M38: 590 | N38: 11 | O38: 5490 | P38: 5 | Q38: 6080 | R38: 16
A39: 7 | B39: RS-CLUB | C39: Платов Александр | E39: 2540 | F39: 10 | G39: 3990 | H39: 3 | I39: 670 | J39: 10 | K39: 5750 | L39: 1 | M39: 1310 | N39: 7 | O39: 5160 | P39: 4 | Q39: 19420 | R39: 35 | S39: =SUM(Q39:Q43) -> 68360 | T39: =SUM(R39:R43) -> 173.5 | U39: 8
C40: Копейка Владимир | E40: 2780 | F40: 9 | G40: 2870 | H40: 10 | I40: 1010 | J40: 7.5 | K40: 960 | L40: 8 | M40: 4620 | N40: 3 | O40: 6880 | P40: 5 | Q40: 19120 | R40: 42.5
C41: Бардиловский Станислав | E41: 4240 | F41: 6 | G41: 2970 | H41: 8 | I41: 1120 | J41: 9 | K41: 1830 | L41: 5 | M41: 2250 | N41: 7 | O41: 1620 | P41: 12 | Q41: 14030 | R41: 47
C42: Ритчик Дмитрий | E42: 2300 | F42: 10 | I42: 760 | J42: 5 | K42: 560 | L42: 11 | M42: 2340 | N42: 8 | O42: 4520 | P42: 7 | Q42: 10480 | R42: 41
C43: Опикан Алексей | G43: 5310 | H43: 8 | Q43: 5310 | R43: 8
A44: 8 | B44: COLMIC BELARUS | C44: Лазарчик Игорь | E44: 3950 | F44: 7 | G44: 5170 | H44: 9 | I44: 2040 | J44: 4 | K44: 1930 | L44: 3.5 | M44: 3640 | N44: 4 | O44: 7040 | P44: 4 | Q44: 23770 | R44: 31.5 | S44: =SUM(Q44:Q48) -> 84800 | T44: =SUM(R44:R48) -> 140 | U44: 4
C45: Якубович Вадим | E45: 2820 | F45: 9 | G45: 3550 | H45: 6 | I45: 340 | J45: 11.5 | K45: 1560 | L45: 7 | M45: 1180 | N45: 8 | O45: 5360 | P45: 3 | Q45: 14810 | R45: 44.5
C46: Курочкин Дмитрий | E46: 4480 | F46: 6 | G46: 6240 | H46: 1 | I46: 3330 | J46: 1 | K46: 2900 | L46: 3 | M46: 4490 | N46: 4 | O46: 9120 | P46: 6 | Q46: 30560 | R46: 21
C47: Абрамович Дмитрий | E47: 3170 | F47: 9 | G47: 2450 | H47: 9 | I47: 720 | J47: 6 | K47: 2820 | L47: 4 | M47: 4350 | N47: 5 | O47: 2150 | P47: 10 | Q47: 15660 | R47: 43
Q48: 0 | R48: 0
A49: 9 | B49: ОК | C49: Головин Олег | E49: 2450 | F49: 11 | G49: 3700 | H49: 5 | I49: 700 | J49: 10 | K49: 1910 | L49: 6 | M49: 5910 | N49: 2 | O49: 15780 | P49: 3 | Q49: 30450 | R49: 37 | S49: =SUM(Q49:Q53) -> 88760 | T49: =SUM(R49:R53) -> 146 | U49: 7
C50: Прикота Сергей | E50: 5160 | F50: 4 | G50: 2390 | H50: 11 | I50: 710 | J50: 8 | K50: 770 | L50: 9 | M50: 1440 | N50: 4 | O50: 2110 | P50: 10 | Q50: 12580 | R50: 46
C51: Ползунов Дмитрий | E51: 4310 | F51: 3 | G51: 5470 | H51: 7 | I51: 2040 | J51: 2 | K51: 2220 | L51: 4 | M51: 6240 | N51: 1 | O51: 7470 | P51: 2 | Q51: 27750 | R51: 19
C52: Князев Николай | E52: 1800 | F52: 11 | G52: 3170 | H52: 8 | I52: 690 | J52: 9 | K52: 1780 | L52: 5 | M52: 2600 | N52: 9 | O52: 7940 | P52: 2 | Q52: 17980 | R52: 44
Q53: 0 | R53: 0
A54: 10 | B54: FLAGMAN MINSK | C54: Баранов Михаил | E54: 2270 | F54: 10 | G54: 3040 | H54: 7 | I54: 690 | J54: 9 | K54: 2990 | L54: 3 | M54: 770 | N54: 10 | O54: 11510 | P54: 1 | Q54: 21270 | R54: 40 | S54: =SUM(Q54:Q58) -> 71130 | T54: =SUM(R54:R58) -> 196 | U54: 10
C55: Гаврукович Павел | E55: 3100 | F55: 9 | G55: 1960 | H55: 11 | I55: 0 | J55: 13 | K55: 0 | L55: 13 | M55: 1210 | N55: 11 | O55: 4400 | P55: 5 | Q55: 10670 | R55: 62
C56: Нюхтилин Евгений | E56: 3160 | F56: 5 | G56: 3160 | H56: 9 | I56: 1730 | J56: 6 | K56: 460 | L56: 10 | M56: 1890 | N56: 12 | O56: 12950 | P56: 5 | Q56: 23350 | R56: 47
C57: Розин Александр | E57: 3740 | F57: 8 | G57: 3110 | H57: 11 | I57: 1820 | J57: 5 | K57: 1710 | L57: 6 | M57: 3670 | N57: 6 | O57: 1790 | P57: 11 | Q57: 15840 | R57: 47
Q58: 0 | R58: 0

Sheet личный зачёт
B1: Чемпионат Республики Беларусь 2018г
B2: Спортивный лов рыбы донной удочкой методом квивертип (фидер)
B3: Личный зачёт
B5: Фамилия, Имя рыболова-спортсмена | C5: итоговое место в личном зачёте
B9: Цалков Артем | C9: 1
B10: Полещук Сергей | C10: 2
B11: Ползунов Дмитрий | C11: 3
B12: Костечко Михаил | C12: 4
B13: Курочкин Дмитрий | C13: 5
B14: Матюшков Игорь | C14: 6
B15: Лапин Игор | C15: 7
B16: Кучеренко Денис | C16: 8
B17: Рунец Дмитрий | C17: 9
B18: Маслов Сергей | C18: 10
B19: Якубович Алексей | C19: 11
B20: Буната Александр | C20: 12
B21: Седач Владислав | C21: 13
B22: Лазарчик Игорь | C22: 14
B23: Товкач Сергей | C23: 15
B24: Сплендер Дмитрий | C24: 16
B25: Федюнин Александр | C25: 17
B26: Гордиенко Андрей | C26: 18
B27: Дробышевский Павел | C27: 19
B28: Ярмошевич Юрий | C28: 20
B29: Платов Александр | C29: 21
B30: Калиновский Вадим | C30: 22
B31: Головин Олег | C31: 23
B32: Гречаник Николай | C32: 24
B33: Баранов Михаил | C33: 25
B34: Бензиков Игорь | C34: 26
B35: Бурак Александр | C35: 27
B36: Копейка Владимир | C36: 28
B37: Драенков Сергей | C37: 29
B38: Абрамович Дмитрий | C38: 30
B39: Аверкин Андрей | C39: 31
B40: Князев Николай | C40: 32
B41: Таптухин Вячеслав | C41: 33
B42: Якубович Вадим | C42: 34
B43: Прикота Сергей | C43: 35
B44: Нюхтилин Евгений | C44: 36
B45: Розин Александр | C45: 37
B46: Бардиловский Станислав | C46: 38
B47: Шамшура Юрий | C47: 39
B48: Пицун Дмитрий | C48: 40
B49: Азаров Максим | C49: 41
B50: Комса Сергей | C50: 42
B51: Ритчик Дмитрий | C51: 43
B52: Шнарский Андрей | C52: 44
B53: Гаврукович Павел | C53: 45
B54: Гаврилов Анатолий | C54: 46

Sheet Лист1
